bitfinex-derivatives/quotes_BTCF0:USTF0_20260207
["timestamp","ask_amount","ask_price","bid_price","bid_amount"]
[1770477069711,0.55842081,68942.0,68915.0,0.54128746]
[1770477069909,0.55842081,68939.0,68915.0,0.54128746]
[1770477070202,0.01452,68942.0,68924.0,0.014524]
[1770477070412,0.56062569,68939.0,68921.0,0.0002]
[1770477070610,0.56062569,68955.0,68922.0,0.014524]
[1770477070808,0.01452,68941.0,68922.0,0.014524]
[1770477071016,0.014521,68939.0,68922.0,0.014524]
[1770477072612,0.01452,68943.0,68927.0,0.014523]
[1770477072918,0.22033156,68970.0,68922.0,0.54632031]
[1770477072919,0.014519,68948.0,68922.0,0.54632031]
[1770477073709,0.014519,68948.0,68924.0,0.54632031]
[1770477074811,0.014518,68951.0,68932.0,0.014522]
[1770477075011,0.014518,68951.0,68934.0,0.014522]
[1770477075210,0.56062569,68953.0,68936.0,0.014521]
[1770477076317,0.56062569,68971.0,68944.0,0.54632031]
[1770477076525,0.56062569,68971.0,68954.0,0.014517]
[1770477076717,0.014514,68970.0,68949.0,0.014519]
[1770477076918,0.014515,68967.0,68960.0,0.29611837]
[1770477077113,0.56062569,68966.0,68953.0,0.24863515]
[1770477077420,0.56062569,68966.0,68946.0,0.014519]
[1770477077717,0.57514069,68966.0,68946.0,0.014519]
[1770477078315,0.57513969,68974.0,68948.0,0.54632031]
[1770477078624,0.56062569,68968.0,68947.0,0.014519]
[1770477079220,0.014513,68976.0,68943.0,0.54632031]
[1770477079521,0.014514,68969.0,68947.0,0.54632031]
[1770477079818,0.57513969,68969.0,68947.0,0.54632031]
[1770477080426,0.57513969,68969.0,68948.0,0.014519]
[1770477080918,0.56062569,68962.0,68939.0,0.28402688]
[1770477081720,0.56062569,68962.0,68940.0,0.54632031]
[1770477081918,0.57513969,68970.0,68940.0,0.54632031]
[1770477082119,0.56062569,68966.0,68940.0,0.54632031]
[1770477083120,0.56062569,68964.0,68945.0,0.014519]
[1770477083520,0.56062569,68962.0,68945.0,0.014519]
[1770477084109,0.56062569,68956.0,68939.0,0.28402688]
[1770477084318,0.56062569,68954.0,68939.0,0.28402688]
[1770477085419,0.57514369,68953.0,68939.0,0.28402688]
[1770477085923,0.57514169,68961.0,68943.0,0.01452]
[1770477086620,0.014513,68979.0,68944.0,0.01452]
[1770477086621,0.014516,68962.0,68944.0,0.01452]
[1770477086825,0.014516,68960.0,68941.0,0.01452]
[1770477087318,0.014516,68960.0,68943.0,0.01452]
[1770477087620,0.014516,68963.0,68945.0,0.014519]
[1770477087823,0.014516,68961.0,68945.0,0.014519]
[1770477088023,0.56062569,68970.0,68945.0,0.014519]
[1770477088024,0.014516,68964.0,68945.0,0.014519]
[1770477088225,0.014516,68964.0,68947.0,0.014519]
[1770477088616,0.014516,68964.0,68949.0,0.014518]
[1770477088817,0.014515,68967.0,68949.0,0.014518]
[1770477089126,0.57514069,68967.0,68949.0,0.014518]
[1770477089720,0.56062569,68962.0,68940.0,0.54632031]
[1770477090021,0.014511,68985.0,68967.0,0.014515]
[1770477090217,0.014511,68985.0,68961.0,0.54632031]
[1770477090415,0.56062569,68987.0,68974.0,0.014513]
[1770477091026,0.014509,68994.0,68976.0,0.014513]
[1770477091223,0.014509,68994.0,68978.0,0.014512]
[1770477091724,0.56062569,68996.0,68974.0,0.014513]
[1770477091725,0.01451,68992.0,68974.0,0.014513]
[1770477092127,0.014509,68995.0,68976.0,0.014513]
[1770477092623,0.014509,68995.0,68955.0,0.014517]
[1770477092624,0.014507,69003.0,68979.0,0.54632031]
[1770477092829,0.56062569,68987.0,68957.0,0.54632031]
[1770477093125,0.014509,68995.0,68975.0,0.014513]
[1770477093323,0.014509,68995.0,68977.0,0.014513]
[1770477093731,0.014509,68993.0,68974.0,0.014513]
[1770477093923,0.014509,68993.0,68959.0,0.014516]
[1770477093924,0.57513669,68987.0,68969.0,0.014514]
[1770477094127,0.56062569,68987.0,68969.0,0.014514]
[1770477094325,0.014511,68986.0,68969.0,0.014514]
[1770477094524,0.57513669,68984.0,68966.0,0.014515]
[1770477094825,0.014508,69002.0,68952.0,0.014518]
[1770477094826,0.01451,68991.0,68973.0,0.014514]
[1770477095030,0.01451,68989.0,68970.0,0.014514]
[1770477095332,0.56062569,68993.0,68970.0,0.014514]
[1770477096026,0.57757636,68990.0,68970.0,0.014514]
[1770477096331,0.01451,68989.0,68970.0,0.014514]
[1770477097128,6e-05,69021.0,68952.0,0.014518]
[1770477097129,0.57757636,69001.0,68971.0,0.57737705]
[1770477097336,0.014508,68999.0,68975.0,0.57737705]
[1770477098424,0.014508,68999.0,68979.0,0.014512]
[1770477098625,0.014508,68999.0,68982.0,0.014512]
[1770477098828,0.57757636,69001.0,68966.0,0.57737705]
[1770477099038,0.57757636,68990.0,68966.0,0.57737705]
[1770477099835,0.57757636,68986.0,68953.0,0.57737705]
[1770477100024,0.57757636,68983.0,68953.0,0.57737705]
[1770477100326,0.57757636,68983.0,68965.0,0.014515]
[1770477100526,0.014512,68982.0,68965.0,0.014515]
[1770477100720,0.014512,68980.0,68961.0,0.014516]
[1770477100922,0.014514,68970.0,68952.0,0.014518]
[1770477101126,0.59209036,68974.0,68953.0,0.001]
[1770477101932,0.014514,68972.0,68953.0,0.014518]
[1770477102227,0.57757636,68974.0,68944.0,0.57737705]
[1770477102628,0.57757636,68974.0,68955.0,0.014517]
[1770477102825,0.59208836,68983.0,68948.0,0.57737705]
[1770477103025,6e-05,68992.0,68967.0,0.014515]
[1770477103026,0.014511,68984.0,68967.0,0.014515]
[1770477103222,0.59208636,68991.0,68965.0,0.57737705]
[1770477103626,0.59208636,68991.0,68973.0,0.014514]
[1770477103830,0.014511,68984.0,68964.0,0.014515]
[1770477104027,0.014511,68984.0,68955.0,0.57737705]
[1770477104028,0.59208736,68984.0,68966.0,0.014515]
[1770477104634,0.57757636,68984.0,68968.0,0.014514]
[1770477105326,0.59208736,68984.0,68966.0,0.014515]
[1770477105637,0.59208736,68984.0,68959.0,0.57737705]
[1770477105638,0.57757636,68984.0,68959.0,0.57737705]
[1770477106337,0.01451,68991.0,68971.0,0.014514]
[1770477106733,0.01451,68989.0,68971.0,0.014514]
[1770477107339,0.01451,68992.0,68967.0,0.57737705]
[1770477107541,0.57757636,68990.0,68968.0,0.014515]
[1770477107741,0.57757636,68990.0,68967.0,0.57737705]
[1770477107742,0.01451,68989.0,68970.0,0.014514]
[1770477108034,0.014511,68986.0,68968.0,0.014515]
[1770477108235,0.57757636,68990.0,68967.0,0.57737705]
[1770477108432,0.01451,68989.0,68970.0,0.014514]
[1770477108733,0.01451,68989.0,68972.0,0.014514]
[1770477109733,0.57757636,68990.0,68967.0,0.57737705]
[1770477109734,0.014511,68986.0,68967.0,0.57737705]
[1770477109932,0.014511,68986.0,68952.0,0.014518]
[1770477109933,0.59208736,68986.0,68968.0,0.014515]
[1770477110133,0.57757636,68999.0,68963.0,0.57737705]
[1770477110331,0.57757636,68999.0,68966.0,0.57737705]
[1770477110839,0.014506,69009.0,68966.0,0.57737705]
[1770477110840,0.57757636,68995.0,68970.0,0.014514]
[1770477111440,0.59208636,68991.0,68972.0,0.014514]
[1770477112042,0.59208636,68991.0,68975.0,0.014513]
[1770477114235,0.59208636,68991.0,68972.0,0.014514]
[1770477114837,0.59208636,68989.0,68972.0,0.014514]
[1770477115638,0.59208836,68983.0,68961.0,0.66625794]
[1770477115838,0.57757636,68983.0,68967.0,0.014515]
[1770477116034,0.57757636,68983.0,68966.0,0.014515]
[1770477116239,0.014512,68982.0,68966.0,0.014515]
[1770477116439,0.59208836,68982.0,68966.0,0.014515]
[1770477117340,0.57757636,68979.0,68950.0,0.57737705]
[1770477117642,0.57757636,68977.0,68963.0,0.014516]
[1770477117845,0.014514,68972.0,68950.0,0.57737705]
[1770477118049,0.014514,68972.0,68956.0,0.014517]
[1770477118347,0.014513,68975.0,68956.0,0.014517]
[1770477118645,0.57757636,68985.0,68964.0,0.57737705]
[1770477118834,0.014512,68983.0,68965.0,0.59189205]
[1770477119032,0.014512,68983.0,68965.0,0.57737705]
[1770477119233,0.57757636,68985.0,68961.0,0.014516]
[1770477119437,0.57757636,68982.0,68963.0,0.014516]
[1770477119945,0.57757636,68978.0,68947.0,0.69203791]
[1770477120141,6e-05,68997.0,68947.0,0.57737705]
[1770477120142,0.014514,68972.0,68947.0,0.57737705]
[1770477120346,0.57757636,68987.0,68958.0,0.57737705]
[1770477120737,0.014512,68982.0,68966.0,0.014515]
[1770477120939,0.014513,68978.0,68960.0,0.014516]
[1770477121339,0.014512,68981.0,68958.0,0.57737705]
[1770477121550,0.014513,68975.0,68958.0,0.014517]
[1770477121846,0.014513,68975.0,68961.0,0.014516]
[1770477121847,0.57757636,68975.0,68961.0,0.014516]
[1770477122038,0.57757636,68975.0,68963.0,0.014516]
[1770477122239,0.014512,68981.0,68963.0,0.014516]
[1770477123445,0.014511,68986.0,68968.0,0.014514]
[1770477124538,0.014511,68986.0,68960.0,0.57737705]
[1770477124539,0.014511,68986.0,68970.0,0.014514]
[1770477124734,0.014512,68982.0,68960.0,0.57737705]
[1770477124935,6e-05,69001.0,68955.0,0.57737705]
[1770477124936,0.57757636,68987.0,68955.0,0.57737705]
[1770477125138,0.57757636,68981.0,68955.0,0.57737705]
[1770477126042,0.014514,68971.0,68955.0,0.014517]
[1770477126244,0.54067284,68970.0,68947.0,0.55112986]
[1770477126943,0.54067284,68968.0,68950.0,0.014518]
[1770477127243,0.54067284,68968.0,68952.0,0.014518]
[1770477128351,0.014515,68967.0,68949.0,0.014519]
[1770477128546,0.54067284,68968.0,68951.0,0.014518]
[1770477129143,0.54067284,68968.0,68955.0,0.001]
[1770477129744,0.55518784,68966.0,68955.0,0.001]
[1770477129944,0.55518784,68966.0,68949.0,0.014518]
[1770477130145,0.54067284,68963.0,68939.0,0.2841535]
[1770477130438,0.55478846,68959.0,68944.0,0.01452]
[1770477130643,0.55478846,68959.0,68939.0,0.2841535]
[1770477130644,0.55478846,68959.0,68941.0,0.01452]
[1770477130843,0.55478846,68959.0,68939.0,0.2841535]
[1770477130844,0.55478846,68959.0,68943.0,0.01452]
[1770477131048,0.55478846,68959.0,68940.0,0.01452]
[1770477131451,0.56930546,68959.0,68940.0,0.01452]
[1770477132040,0.014517,68957.0,68940.0,0.01452]
[1770477132244,0.014517,68957.0,68939.0,0.2841535]
[1770477132245,0.014518,68955.0,68939.0,0.2841535]
[1770477132441,0.014519,68949.0,68939.0,0.2841535]
[1770477132645,0.014516,68963.0,68926.0,0.0002]
[1770477132646,0.01452,68943.0,68926.0,0.0002]
[1770477132850,0.01452,68943.0,68939.0,9.5e-07]
[1770477133148,0.01452,68943.0,68926.0,0.0002]
[1770477133350,0.00012662,68948.0,68933.0,0.54407287]
[1770477133657,0.56930446,68960.0,68941.0,0.01452]
[1770477133844,0.56930446,68960.0,68943.0,0.01452]
[1770477134045,0.014517,68958.0,68940.0,0.014521]
[1770477134550,0.55478846,68960.0,68942.0,0.01452]
[1770477135047,0.014517,68959.0,68942.0,0.01452]
[1770477135345,0.56930546,68956.0,68933.0,0.54407287]
[1770477135545,0.56930546,68956.0,68939.0,0.014521]
[1770477135753,0.55478846,68956.0,68933.0,0.54407287]
[1770477135944,0.55478846,68956.0,68935.0,0.54407287]
[1770477136152,0.014517,68955.0,68939.0,0.014521]
[1770477136347,0.55478846,68956.0,68939.0,0.30019791]
[1770477136948,0.56930546,68956.0,68939.0,0.30019791]
[1770477137250,0.014518,68954.0,68935.0,0.55859387]
[1770477137844,0.014515,68966.0,68917.0,0.11612544]
[1770477137845,0.56930646,68951.0,68932.0,0.30733355]
[1770477138453,0.55478846,68951.0,68934.0,0.014522]
[1770477138651,0.55478846,68951.0,68939.0,0.29474444]
[1770477139954,0.56930746,68948.0,68939.0,0.29461782]
[1770477140155,0.55478846,68945.0,68932.0,0.29281155]
[1770477140350,0.01452,68942.0,68932.0,0.29281155]
[1770477140551,0.55478846,68945.0,68932.0,0.29281155]
[1770477140852,0.014519,68950.0,68933.0,0.014522]
[1770477141451,0.55478846,68953.0,68932.0,0.83688442]
[1770477141654,0.56930446,68961.0,68935.0,0.54407287]
[1770477141853,0.56930446,68961.0,68939.0,0.29193083]
[1770477142051,0.56930446,68961.0,68939.0,0.8360037]
[1770477142362,0.55478846,68959.0,68940.0,0.014521]
[1770477142658,0.56930546,68959.0,68939.0,0.8360037]
[1770477143360,0.56930546,68959.0,68943.0,0.01452]
[1770477145057,0.014517,68957.0,68940.0,0.01452]
[1770477145256,0.55478846,68959.0,68942.0,0.01452]
[1770477145454,0.55478846,68959.0,68944.0,0.014519]
[1770477146459,0.014517,68957.0,68941.0,0.01452]
[1770477147061,0.55478846,68959.0,68943.0,0.01452]
[1770477148660,0.014517,68958.0,68943.0,0.01452]
[1770477149059,0.55478846,68959.0,68939.0,0.8360037]
[1770477149258,0.014517,68958.0,68941.0,0.01452]
[1770477149652,0.55478846,68958.0,68941.0,0.01452]
[1770477149858,0.55478846,68958.0,68944.0,0.01452]
[1770477150162,0.55478846,68966.0,68951.0,0.014518]
[1770477150363,0.014515,68967.0,68951.0,0.014518]
[1770477150660,0.55478846,68969.0,68946.0,0.014519]
[1770477151062,0.014515,68965.0,68948.0,0.014519]
[1770477151966,0.014516,68963.0,68948.0,0.014519]
[1770477152560,0.56930446,68963.0,68948.0,0.014519]
[1770477153767,0.56930446,68963.0,68945.0,0.014519]
[1770477154468,0.56930446,68963.0,68947.0,0.014519]
[1770477154660,0.014516,68961.0,68944.0,0.01452]
[1770477154864,0.014516,68961.0,68942.0,0.54407287]
[1770477154865,0.55478846,68961.0,68942.0,0.54407287]
[1770477155064,0.014517,68956.0,68940.0,0.01452]
[1770477155262,0.55478846,68959.0,68942.0,0.01452]
[1770477156367,0.57699515,68956.0,68942.0,0.01452]
[1770477157562,0.57699515,68956.0,68939.0,0.30645183]
[1770477157767,0.57699515,68954.0,68939.0,0.30645183]
[1770477157962,0.57699515,68954.0,68941.0,0.01452]
[1770477159570,0.014518,68952.0,68939.0,0.29193083]
[1770477159762,0.57699515,68951.0,68939.0,0.29193083]
[1770477160971,0.57699515,68947.0,68939.0,0.29193083]
[1770477161175,0.57699515,68947.0,68920.0,0.53278037]
[1770477162171,0.57699515,68941.0,68920.0,0.53278037]
[1770477162762,0.12633818,68959.0,68951.0,0.53278037]
[1770477162970,6e-05,68964.0,68951.0,0.53278037]
[1770477163365,0.014515,68969.0,68951.0,0.53278037]
[1770477163570,0.57699515,68963.0,68947.0,0.014519]
[1770477163775,0.57699515,68963.0,68949.0,0.014519]
[1770477164780,0.57699515,68972.0,68955.0,0.014517]
[1770477165573,0.57699515,68972.0,68957.0,0.014517]
[1770477165976,0.57699515,68972.0,68959.0,0.014516]
[1770477166576,0.57699515,68972.0,68956.0,0.014517]
[1770477167783,0.57699515,68972.0,68958.0,0.014517]
[1770477168381,0.014512,68980.0,68962.0,0.014516]
[1770477168586,0.59150715,68980.0,68962.0,0.014516]
[1770477168973,0.014513,68978.0,68962.0,0.014516]
[1770477169179,0.014513,68978.0,68959.0,0.014516]
[1770477169380,0.59150815,68978.0,68959.0,0.014516]
[1770477170182,0.59150815,68978.0,68961.0,0.014516]
[1770477170381,0.57699515,68978.0,68963.0,0.014515]
[1770477171388,0.57699515,68978.0,68965.0,0.014515]
[1770477175285,0.57699515,68985.0,68970.0,0.014514]
[1770477175586,0.57699515,68985.0,68972.0,0.014514]
[1770477176181,0.57699515,68985.0,68975.0,0.014513]
[1770477177091,0.57799515,68985.0,68975.0,0.014513]
[1770477177794,0.57699515,68985.0,68975.0,0.014513]
[1770477178988,0.57699515,68985.0,68962.0,0.014516]
[1770477179196,0.57699515,68975.0,68951.0,0.53278037]
[1770477179497,0.57699515,68975.0,68954.0,0.0002]
[1770477179887,0.57699515,68975.0,68960.0,0.014516]
[1770477180390,0.57699515,68970.0,68954.0,0.0002]
[1770477180595,0.59151015,68965.0,68949.0,0.014519]
[1770477181184,0.57699515,68965.0,68949.0,0.014519]
[1770477181694,0.59151015,68965.0,68946.0,0.014519]
[1770477181895,0.59151015,68965.0,68939.0,0.28395195]
[1770477181896,0.57699515,68952.0,68939.0,0.28395195]
[1770477182093,0.57699515,68950.0,68934.0,0.014522]
[1770477182290,0.57699515,68950.0,68932.0,0.29281155]
[1770477182691,0.57699515,68948.0,68939.0,0.27659218]
[1770477182890,0.57699515,68968.0,68932.0,0.82559192]
[1770477183095,0.57699515,68964.0,68937.0,0.014521]
[1770477183296,0.57699515,68959.0,68944.0,0.01452]
[1770477183691,0.57699515,68954.0,68939.0,0.2900364]
[1770477184994,0.57699515,68954.0,68939.0,0.2910364]
[1770477186391,0.57699515,68954.0,68939.0,0.2900364]
[1770477187393,0.57699515,68954.0,68939.0,0.3045574]
[1770477188400,0.014515,68968.0,68940.0,0.53008379]
[1770477188599,0.56897417,68968.0,68940.0,0.53008379]
[1770477188899,0.56897417,68968.0,68954.0,0.014517]
[1770477189499,0.56897417,68968.0,68956.0,0.014517]
[1770477189698,0.014513,68974.0,68956.0,0.014517]
[1770477190092,0.56897417,68973.0,68956.0,0.014517]
[1770477190494,0.59390457,68972.0,68952.0,0.014518]
[1770477190703,0.59390457,68972.0,68954.0,0.014518]
[1770477191204,0.57939057,68972.0,68958.0,0.014517]
[1770477191396,0.014513,68975.0,68958.0,0.014517]
[1770477191596,0.59390357,68978.0,68958.0,0.014517]
[1770477191904,6e-05,68993.0,68965.0,0.014515]
[1770477191905,0.59390157,68985.0,68965.0,0.014515]
[1770477192101,0.57939057,68980.0,68962.0,0.014516]
[1770477192300,0.57939057,68980.0,68964.0,0.014515]
[1770477196908,0.57939057,68967.0,68944.0,0.55997046]
[1770477197102,0.57939057,68967.0,68952.0,0.014518]
[1770477197611,0.57939057,68967.0,68954.0,0.014517]
[1770477198214,0.57939057,68967.0,68940.0,0.01452]
[1770477198411,0.57939057,68967.0,68940.0,0.57449046]
[1770477199009,0.57939057,68967.0,68944.0,0.001]
[1770477199509,0.57939057,68967.0,68949.0,0.014518]
[1770477199703,0.43282702,68989.0,68944.0,0.001]
[1770477199704,0.57939057,68956.0,68944.0,0.001]
[1770477200109,0.59390757,68956.0,68939.0,0.2900364]
[1770477200913,0.57939057,68952.0,68939.0,0.2900364]
[1770477202009,0.57939057,68947.0,68939.0,0.2900364]
[1770477202407,0.014517,68958.0,68940.0,0.55997046]
[1770477202603,0.57939057,68967.0,68941.0,0.01452]
[1770477202913,0.014517,68957.0,68940.0,0.57449146]
[1770477205311,0.59390657,68961.0,68944.0,0.01452]
[1770477210615,0.57939057,68961.0,68946.0,0.014519]
[1770477210816,0.57939057,68961.0,68944.0,0.55997046]
[1770477211118,0.014516,68960.0,68944.0,0.55997046]
[1770477211325,0.014516,68960.0,68942.0,0.01452]
[1770477211326,0.59390757,68958.0,68942.0,0.01452]
[1770477213917,0.57939057,68948.0,68939.0,0.2900364]
[1770477214119,0.57939057,68961.0,68947.0,0.014519]
[1770477214315,0.57939057,68961.0,68949.0,0.014519]
[1770477214716,0.59390557,68968.0,68949.0,0.014519]
[1770477215723,0.57939057,68961.0,68943.0,0.01452]
[1770477216222,0.57939057,68961.0,68945.0,0.014519]
[1770477216423,0.014515,68966.0,68949.0,0.014519]
[1770477216925,0.014516,68964.0,68948.0,0.56524]
[1770477218225,0.014516,68964.0,68948.0,0.579759]
[1770477218920,0.014516,68964.0,68948.0,0.56524]
[1770477220022,0.58011327,68964.0,68947.0,0.014519]
[1770477220222,0.58011327,68964.0,68939.0,0.2900364]
[1770477220223,0.56559727,68964.0,68939.0,0.2900364]
[1770477220521,0.56559727,68957.0,68940.0,0.01452]
[1770477220922,0.56559727,68951.0,68939.0,0.2900364]
[1770477221316,0.56559727,68963.0,68940.0,0.56524]
[1770477221522,0.56559727,68963.0,68945.0,0.579759]
[1770477221922,0.014516,68962.0,68945.0,0.56524]
[1770477223719,0.014516,68961.0,68939.0,0.2900364]
[1770477223923,0.56559727,68949.0,68939.0,0.2900364]
[1770477224225,0.56559727,68971.0,68941.0,0.56524]
[1770477224421,0.56559727,68967.0,68950.0,0.014518]
[1770477224624,0.56559727,68967.0,68950.0,0.579758]
[1770477224819,0.56559727,68967.0,68943.0,0.56524]
[1770477225022,0.56559727,68964.0,68943.0,0.56524]
[1770477225217,0.56559727,68964.0,68941.0,0.01452]
[1770477225218,0.56559727,68959.0,68941.0,0.01452]
[1770477225626,0.56559727,68959.0,68943.0,0.01452]
[1770477226332,0.58011227,68966.0,68943.0,0.56524]
[1770477226728,0.58011227,68966.0,68943.0,0.56624]
[1770477227324,0.58011227,68966.0,68947.0,0.014519]
[1770477227525,0.58011227,68966.0,68948.0,0.56524]
[1770477227721,0.56559727,68973.0,68956.0,0.014517]
[1770477227927,0.014513,68975.0,68956.0,0.56524]
[1770477228830,0.014514,68973.0,68956.0,0.56524]
[1770477230132,0.014513,68976.0,68956.0,0.579757]
[1770477230833,0.014511,68987.0,68966.0,0.56524]
[1770477231230,0.014512,68983.0,68966.0,0.56524]
[1770477231430,0.014511,68986.0,68967.0,0.579755]
[1770477231629,0.56559727,68988.0,68969.0,0.014514]
[1770477231935,0.014511,68987.0,68969.0,0.014514]
[1770477232430,0.44733102,69018.0,68984.0,0.56524]
[1770477232729,0.56559727,69011.0,68988.0,0.57975]
[1770477233526,0.58010327,69011.0,68988.0,0.57975]
[1770477235034,0.58010327,69011.0,68991.0,0.01451]
[1770477235237,0.58010327,69011.0,68991.0,0.57975]
[1770477235434,0.58010327,69011.0,68988.0,0.65522475]
[1770477235435,0.014505,69015.0,68996.0,0.56524]
[1770477235740,0.56559727,69019.0,69001.0,0.014507]
[1770477235941,0.56559727,69019.0,69011.0,0.29021472]
[1770477236835,0.24891891,69019.0,69011.0,0.29021472]
[1770477237138,0.0145,69038.0,69017.0,0.579744]
[1770477237338,0.56559727,69040.0,69013.0,0.014505]
[1770477237537,0.58009727,69040.0,69016.0,0.014505]
[1770477237739,0.58009727,69040.0,69019.0,0.014504]
[1770477237949,0.58009727,69040.0,69016.0,0.56524]
[1770477238349,0.58009727,69040.0,69017.0,0.014504]
[1770477238758,0.44732002,69071.0,69029.0,0.56524]
[1770477238759,0.56559727,69054.0,69029.0,0.56524]
[1770477239147,0.56559727,69049.0,69029.0,0.56524]
[1770477239956,0.56559727,69049.0,69030.0,0.014501]
[1770477240256,0.014494,69066.0,69042.0,0.56524]
[1770477240456,0.014496,69059.0,69036.0,0.57974]
[1770477240756,0.58009227,69063.0,69036.0,0.57974]
[1770477240955,0.58009227,69063.0,69039.0,0.0145]
[1770477241252,0.56559727,69058.0,69037.0,0.0145]
[1770477241455,0.56559727,69058.0,69037.0,0.57974]
[1770477241846,0.56559727,69058.0,69033.0,0.014501]
[1770477242249,0.014496,69057.0,69033.0,0.014501]
[1770477243058,0.014496,69057.0,69033.0,0.579741]
[1770477244361,0.56559727,69038.0,69012.0,0.56524]
[1770477244551,0.56559727,69038.0,69015.0,0.014505]
[1770477244753,0.56559727,69038.0,69015.0,0.579745]
[1770477245053,0.56559727,69038.0,69018.0,0.014504]
[1770477245259,0.56559727,69038.0,69018.0,0.579744]
[1770477248054,0.56559727,69038.0,69021.0,0.014503]
[1770477248255,0.014498,69045.0,69024.0,0.014503]
[1770477248450,0.014495,69061.0,69033.0,0.53755754]
[1770477248650,0.54292618,69064.0,69044.0,0.014498]
[1770477248963,0.014489,69089.0,69042.0,0.53755754]
[1770477248964,0.014494,69068.0,69042.0,0.53755754]
[1770477249161,0.014494,69068.0,69047.0,0.014498]
[1770477249464,0.014494,69068.0,69033.0,0.014501]
[1770477249465,0.54292618,69081.0,69052.0,0.55205454]
[1770477250264,0.55741718,69081.0,69060.0,0.55205254]
[1770477250453,0.54292618,69081.0,69060.0,0.55205254]
[1770477251061,0.014491,69083.0,69060.0,0.55205254]
[1770477251762,0.014491,69080.0,69060.0,0.55205254]
[1770477251967,0.57826032,69080.0,69075.0,2e-07]
[1770477252476,0.014491,69080.0,69075.0,2e-07]
[1770477252660,0.01449,69084.0,69075.0,2e-07]
[1770477252963,0.56376932,69089.0,69058.0,0.56480265]
[1770477253162,0.56376932,69077.0,69058.0,0.014496]
[1770477253358,0.56376932,69086.0,69076.0,1.5e-07]
[1770477253554,0.56376932,69095.0,69076.0,1.5e-07]
[1770477253754,0.014488,69097.0,69077.0,0.57929465]
[1770477253968,0.014488,69095.0,69077.0,0.56480265]
[1770477254265,0.014487,69098.0,69078.0,0.014491]
[1770477254462,0.014486,69106.0,69082.0,0.01449]
[1770477254659,0.56376932,69113.0,69088.0,0.56480265]
[1770477254867,0.56376932,69113.0,69093.0,0.014488]
[1770477255061,0.014483,69117.0,69088.0,0.56480265]
[1770477255062,0.014483,69120.0,69088.0,0.56480265]
[1770477255255,0.56376932,69122.0,69100.0,0.014487]
[1770477255462,0.56376932,69122.0,69096.0,0.56480265]
[1770477255763,0.072388,69147.0,69087.0,0.014489]
[1770477255764,0.014481,69130.0,69108.0,0.014485]
[1770477255964,0.56376932,69133.0,69104.0,0.56480265]
[1770477256272,0.014478,69144.0,69118.0,0.57928565]
[1770477256564,0.57824632,69147.0,69118.0,0.56480265]
[1770477256767,0.014478,69144.0,69120.0,0.56480265]
[1770477256968,0.56376932,69147.0,69122.0,0.56480265]
[1770477256969,0.014477,69146.0,69122.0,0.56480265]
[1770477257166,0.06396,69183.0,69102.0,0.014486]
[1770477257167,0.56376932,69156.0,69132.0,0.01448]
[1770477257363,0.01447,69181.0,69132.0,0.01448]
[1770477257364,0.56376932,69166.0,69132.0,0.56480265]
[1770477257572,0.014479,69136.0,69108.0,0.56480265]
[1770477257761,0.014428,69141.0,69127.0,0.28292321]
[1770477257963,0.014479,69137.0,69120.0,0.28969877]
[1770477258565,0.56376932,69144.0,69117.0,0.014483]
[1770477258766,0.014476,69150.0,69122.0,0.86312541]
[1770477258967,0.014475,69156.0,69126.0,0.57928365]
[1770477259164,0.014476,69153.0,69126.0,0.57923365]
[1770477259567,0.014473,69166.0,69139.0,0.56480265]
[1770477259769,0.56376932,69172.0,69139.0,0.56480265]
[1770477260076,0.014477,69148.0,69123.0,0.014482]
[1770477260369,0.014477,69148.0,69123.0,0.56480265]
[1770477260676,0.5796017,69158.0,69125.0,0.56480265]
[1770477260871,0.5796017,69158.0,69129.0,0.56480265]
[1770477261171,0.5796017,69158.0,69122.0,0.28384076]
[1770477261560,0.5796017,69158.0,69123.0,0.56580265]
[1770477261764,0.014476,69153.0,69123.0,0.56580265]
[1770477262067,0.014477,69149.0,69124.0,0.014482]
[1770477262268,0.57824532,69153.0,69124.0,0.014482]
[1770477262668,0.57824532,69153.0,69128.0,0.014481]
[1770477262869,0.56376932,69153.0,69128.0,0.014481]
[1770477263782,0.56376932,69153.0,69124.0,0.56480265]
[1770477264072,0.014475,69157.0,69131.0,0.01448]
[1770477264374,0.01583238,69158.0,69137.0,0.014479]
[1770477264876,0.01583238,69158.0,69134.0,0.56480265]
[1770477265074,0.01583238,69158.0,69135.0,0.014479]
[1770477265470,0.01583238,69158.0,69135.0,0.57928165]
[1770477265671,0.01583238,69158.0,69138.0,0.014479]
[1770477265867,0.01583238,69158.0,69138.0,0.57928165]
[1770477266065,0.014476,69155.0,69128.0,0.56480265]
[1770477266267,0.014476,69155.0,69132.0,0.01448]
[1770477266576,0.014476,69155.0,69131.0,0.01448]
[1770477266577,0.56376932,69155.0,69131.0,0.01448]
[1770477266979,0.56376932,69155.0,69131.0,0.57928265]
[1770477268872,0.57824632,69148.0,69126.0,0.014481]
[1770477269174,0.57824632,69148.0,69122.0,0.851287]
[1770477269175,0.56376932,69148.0,69122.0,0.28648435]
[1770477269370,0.014479,69140.0,69122.0,0.28648435]
[1770477269872,0.56376932,69154.0,69124.0,0.56480265]
[1770477270378,0.01583238,69158.0,69124.0,0.56480265]
[1770477271073,0.01583238,69158.0,69140.0,0.56480265]
[1770477271271,0.01583238,69158.0,69125.0,0.014482]
[1770477271272,0.014471,69178.0,69155.0,0.014475]
[1770477271588,0.014471,69179.0,69157.0,0.014475]
[1770477271877,0.014471,69179.0,69159.0,0.014474]
[1770477272579,0.57486946,69238.0,69159.0,0.014474]
[1770477272580,0.014469,69187.0,69163.0,0.014474]
[1770477272779,0.57486946,69238.0,69159.0,0.56480265]
[1770477272780,0.56376932,69183.0,69159.0,0.56480265]
[1770477272983,0.56376932,69183.0,69155.0,0.014475]
[1770477273182,0.56376932,69192.0,69160.0,0.56480265]
[1770477273375,0.014472,69174.0,69151.0,0.57927865]
[1770477273572,0.56376932,69183.0,69151.0,0.56480265]
[1770477273879,0.072337,69195.0,69151.0,0.56480265]
[1770477273880,0.014472,69172.0,69151.0,0.56480265]
[1770477274276,0.014474,69164.0,69142.0,0.56480265]
[1770477274472,0.56376932,69172.0,69142.0,0.56480265]
[1770477274779,0.014474,69161.0,69136.0,0.014479]